bitfinex-derivatives/quotes_ETHF0:USTF0_20250905
["timestamp","ask_amount","ask_price","bid_price","bid_amount"]
[1757091498219,4.30022318,4298.6,4298.5,0.7129]
[1757091498517,3.7196,4298.6,4298.5,0.8409]
[1757091499115,0.5118,4298.6,4298.5,0.8409]
[1757091499419,0.2131,4298.6,4298.5,0.8409]
[1757091499720,0.2984,4298.8,4298.5,0.5428]
[1757091500018,0.7,4298.8,4298.7,0.729]
[1757091501721,0.2984,4298.7,4298.2,0.5592]
[1757091502024,0.7,4298.3,4297.8,0.3222]
[1757091502418,0.7,4297.9,4297.8,0.729]
[1757091507419,0.1236,4298.5,4298.0,0.4502]
[1757091507626,0.8236,4298.5,4298.4,0.2051]
[1757091508122,0.7,4298.5,4298.4,0.729]
[1757091508329,0.8236,4298.5,4298.4,0.2051]
[1757091508723,0.2984,4298.4,4297.8,0.5592]
[1757091508923,0.7,4297.9,4297.8,0.966]
[1757091509621,0.2984,4298.3,4297.9,0.3222]
[1757091509822,0.4931,4298.3,4298.2,0.729]
[1757091510023,0.1947,4298.3,4298.2,0.729]
[1757091510421,0.4931,4298.3,4298.2,0.729]
[1757091511127,0.7,4298.7,4298.6,0.729]
[1757091513219,3.4448,4299.3,4298.6,0.4068]
[1757091513425,0.3647,4298.9,4298.8,0.4068]
[1757091513724,0.87,4298.9,4298.8,0.729]
[1757091515227,0.87,4298.9,4298.8,0.2051]
[1757091515426,0.87,4298.9,4298.4,0.3222]
[1757091515726,0.87,4298.9,4298.2,3.4448]
[1757091515918,0.2984,4298.8,4298.3,0.3222]
[1757091516135,0.7,4298.3,4298.2,3.8516]
[1757091516518,0.7,4298.3,4298.2,4.1738]
[1757091516718,0.17,4298.9,4298.2,3.8516]
[1757091516925,0.7,4298.8,4298.7,0.2051]
[1757091517126,0.7,4298.8,4298.7,0.5273]
[1757091517318,0.7,4298.8,4298.7,0.729]
[1757091517518,0.1947,4298.8,4298.7,0.729]
[1757091518028,0.4931,4298.8,4298.7,0.729]
[1757091518725,0.17,4298.9,4298.8,0.3222]
[1757091518923,0.17,4298.9,4298.8,0.729]
[1757091519728,0.6631,4298.9,4298.8,0.729]
[1757091520029,0.87,4298.9,4298.8,0.729]
[1757091521118,0.1236,4298.5,4298.2,3.53]
[1757091521315,0.40262,4298.9,4298.2,3.6146]
[1757091521316,0.17,4298.9,4298.2,3.6146]
[1757091521518,0.87,4298.9,4298.8,0.2051]
[1757091521921,0.87,4298.9,4298.5,0.3222]
[1757091522122,0.87,4298.9,4298.2,3.2078]
[1757091522316,0.7,4298.8,4298.7,0.2051]
[1757091522519,0.7,4298.8,4298.2,3.2078]
[1757091522737,0.2984,4298.7,4298.2,3.53]
[1757091523028,0.1947,4298.3,4298.2,3.6146]
[1757091523231,0.4931,4298.3,4298.2,3.6146]
[1757091523523,0.7,4298.8,4298.7,0.2051]
[1757091523723,0.5252,4298.5,4298.4,0.2051]
[1757091523929,0.8236,4298.5,4298.2,3.2078]
[1757091524229,0.8236,4298.5,4297.0,3.23409043]
[1757091524230,0.7,4298.3,4298.0,0.3222]
[1757091524425,0.5252,4298.0,4297.9,0.7643]
[1757091524630,0.8236,4298.0,4297.9,0.7643]
[1757091524931,0.8236,4298.0,4297.9,0.2051]
[1757091525116,0.7,4298.0,4297.9,0.729]
[1757091525632,0.8236,4298.0,4297.9,0.729]
[1757091525927,0.8236,4298.0,4297.9,0.4068]
[1757091526828,0.8236,4298.0,4297.7,0.237]
[1757091527131,0.8236,4298.0,4297.9,0.2051]
[1757091528635,0.8236,4298.0,4297.9,0.6991]
[1757091530428,0.7,4298.0,4297.9,0.6991]
[1757091531235,0.7,4298.0,4297.7,3.4448]
[1757091531236,0.5268,4298.5,4298.4,0.2102]
[1757091531430,0.5268,4298.5,4298.4,0.7042]
[1757091531932,0.6941,4298.5,4298.4,0.7042]
[1757091534538,0.8183,4298.5,4298.4,0.4061]
[1757091534733,0.2909,4298.4,4298.2,3.2078]
[1757091534934,0.6941,4298.2,4298.1,0.237]
[1757091536535,0.6941,4298.2,4298.1,0.4472]
[1757091536936,0.6941,4298.2,4298.1,0.9412]
[1757091540039,0.4989,4298.2,4298.1,0.9412]
[1757091540441,0.6941,4298.2,4298.1,0.9412]
[1757091541847,0.208,4298.2,4298.1,0.9412]
[1757091542438,0.4989,4298.2,4298.1,0.9412]
[1757091542739,0.6941,4298.2,4298.1,0.2102]
[1757091543041,0.2909,4298.1,4297.8,0.2981]
[1757091543246,0.6941,4298.1,4298.0,0.5083]
[1757091543546,0.6941,4298.1,4298.0,0.833]
[1757091543747,0.4989,4298.4,4298.3,0.4061]
[1757091543950,0.4989,4298.4,4298.3,0.7042]
[1757091544743,0.208,4298.4,4298.3,0.7042]
[1757091545045,3.4158,4298.6,4298.5,0.5349]
[1757091545251,4.28740636,4298.6,4298.5,0.833]
[1757091545742,3.7067,4298.6,4298.5,0.833]
[1757091545948,3.9019,4298.6,4298.5,0.7042]
[1757091547251,3.9019,4298.6,4298.5,0.2102]
[1757091547453,3.9019,4298.6,4298.5,0.7042]
[1757091548951,3.9019,4298.6,4298.5,0.2102]
[1757091549149,0.6941,4298.2,4298.1,0.4472]
[1757091549743,0.6941,4298.2,4297.9,0.2981]
[1757091549945,0.6941,4298.2,4297.8,0.4472]
[1757091549946,0.4032,4297.9,4297.8,0.4472]
[1757091550146,0.6941,4297.9,4297.8,0.4472]
[1757091550544,0.6941,4297.9,4297.8,0.237]
[1757091550750,0.6941,4297.9,4297.7,3.2078]
[1757091551049,0.2909,4297.8,4297.7,3.2078]
[1757091551252,0.6941,4297.8,4297.7,3.2078]
[1757091551457,0.6941,4297.8,4297.7,3.7161]
[1757091551755,0.6941,4297.8,4297.7,3.912]
[1757091551952,0.6941,4297.8,4297.7,3.418]
[1757091553759,0.6941,4297.8,4297.7,3.7161]
[1757091553966,0.6941,4297.8,4297.7,3.912]
[1757091554155,0.5279,4298.4,4297.8,0.2981]
[1757091554359,0.6941,4298.4,4297.9,0.29352828]
[1757091554561,0.6941,4297.8,4297.7,3.912]
[1757091554864,0.6941,4297.8,4297.7,4.20551978]
[1757091555863,3.2078,4298.6,4297.7,3.90741978]
[1757091556063,0.6941,4298.6,4298.5,0.7042]
[1757091556268,1.27510451,4298.6,4298.5,0.99771978]
[1757091556958,1.27510451,4298.6,4298.5,0.69961978]
[1757091557158,1.27510451,4298.6,4298.5,0.99771978]
[1757091557560,0.6941,4298.6,4298.5,1.12651978]
[1757091557767,0.4609,4298.9,4298.5,1.12651978]
[1757091557965,0.6689,4298.9,4298.8,0.7042]
[1757091558277,0.8641,4298.9,4298.8,0.99771978]
[1757091559568,0.17,4298.9,4298.8,0.99771978]
[1757091560168,0.6619,4298.9,4298.8,0.99771978]
[1757091560564,0.8644,4298.9,4298.8,0.99771978]
[1757091560971,0.17,4298.9,4298.8,0.99771978]
[1757091561271,0.3646,4298.9,4298.8,0.99771978]
[1757091561467,0.6619,4298.9,4298.8,0.99771978]
[1757091562369,0.8644,4298.9,4298.8,0.99771978]
[1757091563279,0.17,4298.9,4298.8,0.99771978]
[1757091563973,0.6619,4298.9,4298.8,0.99771978]
[1757091565670,0.8644,4298.9,4298.8,0.99771978]
[1757091566676,0.8644,4298.9,4298.8,1.23471978]
[1757091572379,0.6619,4298.9,4298.8,1.23471978]
[1757091573079,0.8644,4298.9,4298.8,1.23471978]
[1757091579081,0.8644,4298.9,4298.8,1.23616531]
[1757091585781,0.17,4298.9,4298.8,1.23616531]
[1757091585988,0.8153,4299.5,4299.1,0.2949]
[1757091586188,0.3971,4299.3,4299.2,0.29496531]
[1757091586400,0.6944,4299.3,4299.2,0.49816531]
[1757091586691,0.6944,4299.3,4299.2,0.99306531]
[1757091588894,0.4919,4299.3,4299.2,0.99306531]
[1757091589595,0.7025,4299.3,4299.2,0.99306531]
[1757091590500,0.7025,4299.3,4299.2,0.29496531]
[1757091590700,1.28342187,4299.3,4299.2,0.29496531]
[1757091591298,0.98612187,4299.3,4298.8,0.236]
[1757091591499,0.8606,4299.0,4298.9,0.5108]
[1757091591701,0.7405,4299.0,4298.9,0.7151]
[1757091592300,0.5299,4299.0,4298.9,0.7151]
[1757091592491,0.1201,4299.5,4298.8,0.236]
[1757091592492,0.8606,4299.5,4299.4,0.2034]
[1757091592693,1.44153367,4299.5,4299.0,0.3074]
[1757091592890,0.8606,4299.0,4298.9,0.2034]
[1757091593100,0.8606,4299.0,4298.9,0.7151]
[1757091593700,0.8606,4299.0,4298.9,0.2034]
[1757091593915,0.8606,4299.0,4298.9,0.5108]
[1757091597706,0.5381,4299.0,4298.7,3.2078]
[1757091598005,0.5381,4299.0,4298.8,0.7468]
[1757091598006,0.7405,4298.9,4298.8,0.7468]
[1757091598204,0.7405,4298.9,4298.8,0.9511]
[1757091600295,0.1201,4299.5,4298.9,0.3074]
[1757091600501,0.7405,4299.0,4298.9,0.7151]
[1757091600806,0.7405,4298.9,4298.8,0.236]
[1757091601002,0.418,4298.2,4298.1,0.7151]
[1757091601207,0.7405,4298.2,4298.1,0.9511]
[1757091601601,0.7405,4298.2,4298.1,0.2034]
[1757091602104,0.7405,4298.2,4298.1,0.7151]
[1757091602304,0.5299,4298.8,4298.7,0.2034]
[1757091602607,0.7405,4298.8,4298.7,0.7151]
[1757091602802,0.3225,4299.3,4298.7,0.4077]
[1757091603003,0.5299,4299.1,4299.0,0.4077]
[1757091603202,0.7405,4299.1,4299.0,0.7151]
[1757091605104,0.7405,4299.1,4299.0,0.4077]
[1757091605298,0.7405,4298.7,4298.6,0.9511]
[1757091606409,3.4438,4299.4,4298.7,0.3074]
[1757091606599,1.3211227,4299.3,4299.2,0.2034]
[1757091606798,1.3211227,4299.3,4299.2,0.5108]
[1757091607011,0.7405,4298.7,4298.6,0.7468]
[1757091607305,0.7405,4298.7,4298.6,0.5108]
[1757091607699,0.7405,4298.7,4297.7,3.2078]
[1757091607700,0.3225,4298.2,4297.7,3.2078]
[1757091607901,0.7405,4297.8,4297.7,3.9229]
[1757091609297,0.3225,4297.8,4297.7,3.9229]
[1757091609502,0.5299,4298.4,4298.3,0.2034]
[1757091609711,0.7405,4298.4,4298.3,0.2034]
[1757091609903,0.3225,4298.3,4297.7,3.2078]
[1757091610208,0.5299,4297.8,4297.7,3.9229]
[1757091610603,0.7405,4297.8,4297.7,3.9229]
[1757091610911,0.5299,4297.8,4297.7,3.9229]
[1757091611208,0.7405,4297.8,4297.7,3.9229]
[1757091611410,0.2074,4297.8,4297.7,3.9229]
[1757091611610,0.5299,4297.8,4297.7,3.9229]
[1757091612208,0.7405,4297.8,4297.7,3.9229]
[1757091612409,0.7405,4297.8,4297.7,4.1589]
[1757091612707,0.3225,4297.8,4297.7,4.1589]
[1757091612905,0.5299,4298.2,4298.1,0.4077]
[1757091613105,0.7405,4298.2,4298.1,0.7151]
[1757091613608,0.236,4298.8,4298.1,0.4077]
[1757091613911,0.99762571,4298.7,4298.6,0.4077]
[1757091614211,1.32012571,4298.7,4298.6,0.4077]
[1757091614405,1.32012571,4298.7,4298.6,0.2034]
[1757091615206,0.418,4297.9,4297.7,3.2078]
[1757091615409,0.7405,4297.8,4297.7,0.7468]
[1757091615604,0.7405,4297.8,4297.7,0.5108]
[1757091615809,0.7405,4297.8,4297.7,0.2034]
[1757091616119,0.8606,4297.5,4297.4,0.7468]
[1757091616422,0.8606,4297.5,4297.4,0.9511]
[1757091616804,0.7405,4297.5,4297.4,0.9511]
[1757091617004,0.3225,4298.2,4297.5,0.54092]
[1757091617205,0.5299,4298.2,4298.1,0.7151]
[1757091617405,0.7405,4298.2,4298.1,0.7151]
[1757091618507,0.6907,4297.9,4297.8,0.236]
[1757091618813,0.6907,4297.9,4297.8,0.9526]
[1757091619211,0.3012,4297.8,4297.4,3.5154]
[1757091619414,0.6907,4297.6,4297.5,0.9526]
[1757091619607,0.6907,4297.6,4297.5,1.0756]
[1757091619915,0.6907,4297.6,4297.5,0.9526]
[1757091620512,0.6907,4298.2,4298.1,0.409]
[1757091620705,0.6907,4298.2,4298.1,0.7166]
[1757091621618,0.6907,4297.9,4297.8,0.4301]
[1757091621809,0.6907,4297.9,4297.8,0.645]
[1757091622011,0.6907,4297.9,4297.8,0.236]
[1757091622319,0.6907,4297.9,4297.8,0.9526]
[1757091622618,3.2078,4298.3,4297.8,0.645]
[1757091622815,0.4955,4298.2,4298.1,0.409]
[1757091623015,0.4955,4298.2,4298.1,0.7166]
[1757091623417,0.6907,4298.2,4298.1,0.7166]
[1757091623924,0.6907,4298.2,4297.9,0.3076]
[1757091624119,0.6907,4297.9,4297.5,0.3076]
[1757091624319,0.8195,4297.5,4297.4,3.6379]
[1757091624521,0.4955,4297.9,4297.8,0.409]
[1757091624819,0.4955,4298.0,4297.9,0.7166]
[1757091625624,0.5096,4298.5,4298.4,0.1941]
[1757091625823,0.5096,4298.5,4298.4,0.5017]
[1757091626330,0.8108,4298.5,4298.4,0.5017]
[1757091627622,0.3895,4298.4,4298.3,0.1941]
[1757091627926,0.6907,4298.4,4298.3,0.5017]
[1757091628123,0.1288,4298.0,4297.7,0.3076]
[1757091628426,0.1288,4298.0,4297.6,0.1941]
[1757091628427,0.6907,4297.7,4297.6,0.1941]
[1757091629323,0.6907,4297.7,4297.6,0.7166]
[1757091629520,0.1288,4298.0,4297.6,0.7166]
[1757091629521,3.4438,4298.3,4297.6,0.409]
[1757091629720,0.6907,4298.2,4298.1,0.1941]
[1757091629925,1.27058307,4298.2,4297.6,0.3076]
[1757091630127,0.6907,4298.2,4297.6,0.3076]
[1757091630428,0.6907,4298.2,4298.1,0.1941]
[1757091630622,0.6907,4298.2,4298.1,0.5017]
[1757091630929,0.6907,4298.2,4298.1,0.7166]
[1757091631727,0.3012,4298.5,4298.2,0.3076]
[1757091631920,0.4955,4298.5,4298.4,0.7166]
[1757091632518,0.6907,4298.5,4298.4,0.7166]
[1757091633915,3.509,4298.8,4298.4,0.7166]
[1757091634128,0.1288,4299.5,4298.7,0.3076]
[1757091634129,3.2078,4299.3,4298.7,0.3076]
[1757091634326,3.4021,4299.3,4299.2,0.409]
[1757091634624,4.17724711,4299.3,4298.7,0.3076]
[1757091634829,0.1943,4298.8,4298.7,0.7166]
[1757091635526,3.2078,4299.3,4298.7,0.409]
[1757091635727,0.6907,4299.2,4299.1,0.1941]
[1757091636431,0.6907,4299.2,4299.1,0.7166]
[1757091641228,3.2078,4300.4,4299.8,0.409]
[1757091641533,0.4955,4299.9,4299.8,0.409]
[1757091642032,0.4955,4299.9,4299.8,0.7166]
[1757091642234,0.6907,4299.9,4299.8,0.7166]
[1757091642920,3.2078,4300.4,4299.8,0.409]
[1757091643128,3.8985,4300.4,4300.3,0.1941]
[1757091643323,0.1943,4299.8,4299.7,3.9244]
[1757091643523,0.4955,4299.8,4299.7,3.9244]
[1757091644229,0.6907,4299.8,4299.7,3.9244]
[1757091646031,0.3895,4299.4,4299.3,0.9526]
[1757091646233,0.6907,4299.4,4299.3,0.9526]
[1757091647628,0.3895,4299.4,4299.1,3.2078]
[1757091647930,0.6907,4299.2,4299.1,3.2078]
[1757091648129,0.6907,4299.2,4299.1,3.4019]
[1757091650026,0.6907,4299.2,4299.1,3.7177]
[1757091650228,0.6907,4299.2,4299.1,3.9172]
[1757091650734,0.6907,4299.2,4299.1,0.7094]
[1757091651230,0.2983,4299.1,4298.6,3.5236]
[1757091651434,0.7018,4298.8,4298.7,0.7641]
[1757091651734,0.7018,4298.8,4298.7,0.9636]
[1757091652127,0.7018,4298.8,4298.7,0.7276]
[1757091652327,0.7018,4298.8,4298.7,0.4118]
[1757091652534,0.7018,4298.8,4298.7,0.2123]
[1757091652730,0.2983,4298.7,4298.6,3.2078]
[1757091652934,0.7018,4298.7,4298.6,3.2078]
[1757091654143,0.7018,4298.2,4298.1,0.7641]
[1757091654437,0.7018,4298.2,4298.1,0.9636]
[1757091655130,0.1172,4298.0,4297.9,3.2078]
[1757091655335,0.5207,4298.0,4297.9,3.2078]
[1757091655532,0.819,4298.0,4297.9,3.2078]
[1757091655926,0.819,4298.0,4297.9,3.4201]
[1757091656137,0.7018,4298.0,4297.9,3.9354]
[1757091656635,0.1172,4298.5,4297.9,3.9354]
[1757091656838,0.496,4298.4,4298.3,0.7276]
[1757091657435,0.7018,4298.4,4298.3,0.7276]
[1757091659738,0.1977,4298.4,4298.3,0.7276]
[1757091659936,0.496,4298.4,4298.3,0.7276]
[1757091660530,3.2078,4298.9,4298.3,0.7276]
[1757091660531,0.2983,4298.8,4298.4,0.3158]
[1757091660837,3.2078,4298.9,4297.9,3.5236]
[1757091660838,0.2983,4298.7,4297.9,3.5236]
[1757091661043,0.7018,4298.0,4297.9,3.9354]
[1757091662032,0.7018,4298.0,4297.9,0.7276]
[1757091662239,0.819,4298.0,4297.9,0.7276]
[1757091662445,0.5207,4298.0,4297.7,0.236]
[1757091662739,0.4035,4297.6,4297.5,0.5281]
[1757091663035,0.7018,4297.6,4297.5,0.5281]
[1757091663240,0.7018,4297.6,4297.5,0.7276]
[1757091663444,0.2983,4297.9,4297.6,0.3158]
[1757091663636,0.496,4297.9,4297.8,0.4118]
[1757091663832,0.496,4297.9,4297.8,0.7276]
[1757091664036,0.2983,4298.2,4298.1,0.7276]
[1757091664238,0.496,4298.2,4298.1,0.7276]
[1757091664431,0.7018,4298.2,4298.1,0.7276]
[1757091666237,0.7018,4297.9,4297.8,0.5281]
[1757091666545,0.7018,4297.9,4297.8,0.2123]
[1757091666846,0.7018,4297.9,4297.8,0.5281]
[1757091668241,0.7018,4297.9,4297.8,0.2123]
[1757091668442,0.2983,4297.8,4297.5,0.5518]
[1757091668746,0.7018,4297.6,4297.5,0.9636]
[1757091670242,0.1172,4298.0,4297.5,1.0817]
[1757091670447,3.2078,4298.3,4297.5,1.0817]
[1757091670448,3.2078,4298.3,4297.8,0.7276]
[1757091670637,0.2983,4298.2,4297.9,0.3158]
[1757091670844,0.496,4298.2,4298.1,0.7276]
[1757091671052,0.7018,4298.2,4298.1,0.7276]
[1757091672050,0.1977,4298.2,4298.1,0.7276]
[1757091672651,0.4843,4298.5,4298.1,0.4118]
[1757091672847,0.4843,4298.5,4298.2,0.3158]
[1757091672848,0.2983,4298.4,4298.2,0.3158]
[1757091673058,0.186,4298.5,4298.4,0.3158]
[1757091673250,0.186,4298.5,4298.4,0.7276]
[1757091673455,0.2983,4298.8,4298.5,0.1181]
[1757091673757,0.1977,4298.9,4298.8,0.3158]
[1757091673947,0.496,4298.9,4298.8,0.7276]
[1757091674454,0.5343,4299.2,4299.1,0.7276]
[1757091674655,0.236,4299.2,4299.1,0.7276]
[1757091674853,0.4337,4299.2,4299.1,0.7276]
[1757091675254,0.2983,4299.5,4299.2,0.3158]
[1757091675451,0.7018,4299.5,4299.4,0.7276]
[1757091675651,0.819,4299.5,4299.0,0.3158]
[1757091675951,0.7018,4298.8,4298.7,0.6478]
[1757091676158,0.7018,4298.8,4298.7,0.2123]
[1757091676354,0.4035,4298.8,4298.4,3.2078]
[1757091676561,0.5207,4298.5,4298.4,3.4201]
[1757091676768,0.819,4298.5,4298.4,3.9354]
[1757091677466,0.7018,4298.5,4298.4,3.9354]
[1757091679370,0.7018,4298.5,4298.4,0.7276]
[1757091680365,0.5297,4298.5,4297.8,3.5066]
[1757091680669,0.5042,4297.9,4297.8,4.1668]
[1757091681369,0.5042,4298.3,4298.2,0.723]
[1757091681571,0.7068,4298.3,4298.2,0.723]
[1757091683371,0.7068,4298.3,4298.2,0.4242]
[1757091683564,0.7068,4298.3,4297.9,0.2988]
[1757091683765,3.9146,4298.3,4297.9,0.2988]
[1757091684168,0.58074602,4298.2,4297.9,0.2988]
[1757091684364,0.7068,4298.0,4297.9,0.723]
[1757091684559,0.833,4298.0,4297.9,0.2126]
[1757091684765,0.2928,4297.9,4297.6,0.2988]
[1757091684970,0.7068,4297.7,4297.6,0.2126]
[1757091685472,0.7068,4297.7,4297.6,0.723]
[1757091686668,0.7068,4297.7,4297.6,0.4242]
[1757091686968,0.7068,4297.7,4297.3,0.5348]
[1757091686969,0.1262,4297.0,4296.9,0.2988]
[1757091687172,0.833,4297.0,4296.9,0.2126]
[1757091687373,0.833,4297.0,4296.9,0.723]
[1757091687763,0.833,4297.0,4296.5,3.3259]
[1757091687764,3.2078,4297.7,4297.3,0.723]
[1757091687963,3.2078,4297.7,4297.6,0.4242]
[1757091687964,0.414,4297.7,4297.6,0.4242]
[1757091688168,0.236,4298.0,4297.7,0.2988]
[1757091688378,0.2114,4297.8,4297.7,0.723]
[1757091688576,0.5042,4297.8,4297.7,0.723]
[1757091688876,0.5042,4297.8,4297.2,0.5348]
[1757091688877,0.7068,4297.8,4297.2,0.5348]
[1757091689077,0.2114,4297.1,4297.0,3.7598]
[1757091689279,0.5042,4297.1,4297.0,3.7598]
[1757091689577,0.2114,4297.1,4297.0,0.4242]
[1757091689775,0.7068,4297.1,4297.0,0.723]
[1757091690078,0.7068,4297.1,4297.0,0.4242]
[1757091690771,0.7068,4297.1,4297.0,0.2126]
[1757091690975,0.7068,4296.4,4296.3,3.9308]
[1757091691368,0.414,4296.4,4295.7,3.2078]
[1757091691573,0.7068,4295.7,4295.6,0.723]
[1757091692382,0.7068,4295.7,4295.6,0.2126]
[1757091692571,0.414,4295.7,4295.2,3.2078]
[1757091692877,0.414,4295.6,4295.5,0.2126]
[1757091693070,0.7068,4295.6,4295.5,0.2126]
[1757091694983,0.7068,4295.6,4295.5,0.723]
[1757091695777,0.5042,4296.0,4295.9,0.4242]
[1757091695973,3.2078,4296.3,4296.0,0.4266]
[1757091696177,0.2114,4296.4,4296.3,0.723]
[1757091696576,0.236,4296.5,4296.4,0.2988]
[1757091696774,3.2078,4296.9,4296.5,0.4266]
[1757091697080,3.2078,4296.9,4296.8,0.723]
[1757091697277,3.9146,4296.9,4296.8,0.723]
[1757091697983,0.7068,4296.9,4296.8,0.723]
[1757091699585,0.7068,4296.9,4296.8,0.4242]
[1757091699785,0.7068,4296.9,4296.8,0.723]
[1757091700489,0.7068,4296.9,4296.5,0.1278]
[1757091700490,0.236,4297.1,4297.0,0.1278]
[1757091700785,0.4474,4297.1,4297.0,0.8508]
[1757091700981,0.9428,4297.1,4297.0,0.723]
[1757091701686,0.9428,4297.1,4297.0,0.2126]
[1757091701884,0.9428,4297.1,4296.6,0.2988]
[1757091702083,0.9428,4297.1,4296.5,0.8508]
[1757091702084,0.2114,4296.6,4296.5,0.8508]
[1757091702381,0.7068,4296.6,4296.5,0.723]
[1757091702681,0.2114,4296.6,4296.5,0.723]
[1757091703079,3.2078,4296.9,4296.8,0.4242]
[1757091703276,3.2078,4296.9,4296.8,0.723]
[1757091703680,3.4192,4296.9,4296.8,0.723]
[1757091703882,3.9146,4296.9,4296.8,0.723]
[1757091705484,3.4192,4296.9,4296.8,0.723]
[1757091705987,3.9146,4296.9,4296.8,0.723]
[1757091706584,3.2078,4296.9,4296.8,0.723]
[1757091707289,0.2928,4297.4,4296.8,0.4242]
[1757091707488,0.236,4297.5,4297.4,0.2988]
[1757091707689,0.236,4297.5,4297.4,0.723]
[1757091707690,0.7402,4297.5,4297.4,0.723]
[1757091707887,0.9428,4297.5,4297.4,0.723]
[1757091708689,1.0685,4297.5,4297.4,0.2126]
[1757091709192,1.0685,4297.5,4296.8,40.8]
[1757091709193,0.7143,4297.0,4296.9,0.6989]
[1757091710381,0.7764,4297.5,4297.4,0.1993]
[1757091710581,0.2013,4297.5,4297.4,0.6989]
[1757091711686,0.5009,4297.5,4297.4,0.6989]
[1757091711894,0.7143,4297.5,4297.4,0.6989]
[1757091712894,0.2013,4297.5,4297.4,0.6989]
[1757091713296,0.7143,4297.5,4297.4,0.6989]
[1757091713488,0.84,4297.5,4297.4,0.1993]
[1757091713694,0.7143,4296.8,4296.7,3.4071]
[1757091714502,0.7143,4296.8,4296.7,3.2078]
[1757091714899,0.7143,4296.8,4296.7,3.4071]
[1757091715298,0.7143,4296.8,4296.7,0.1993]
[1757091715593,0.7143,4296.8,4296.1,3.2078]
[1757091715594,0.4147,4296.8,4296.1,3.2078]
[1757091715798,0.2996,4296.7,4296.2,0.236]
[1757091715999,0.7143,4296.3,4296.2,0.9349]
[1757091717296,0.7143,4296.3,4296.1,3.2078]
[1757091717499,0.4147,4296.3,4296.2,0.6989]
[1757091717895,0.4147,4296.3,4296.2,0.3944]
[1757091717896,0.7143,4296.3,4296.2,0.3944]
[1757091718102,0.2996,4296.2,4295.6,3.5123]
[1757091718296,0.1257,4296.5,4295.6,4.1427]
[1757091718297,0.2013,4295.7,4295.6,4.1427]
[1757091718703,0.1257,4296.5,4295.8,0.3944]
[1757091718891,0.84,4296.5,4296.4,0.1993]
[1757091719097,0.84,4296.5,4296.1,0.3045]
[1757091719397,0.84,4296.5,4296.4,0.1993]
[1757091719699,0.84,4296.5,4295.6,3.4438]
[1757091719903,0.2996,4296.3,4295.7,0.3045]
[1757091720105,0.7143,4295.7,4295.6,3.9476]
[1757091720300,0.2996,4296.4,4295.7,0.3045]
[1757091720501,0.7143,4296.4,4296.3,0.6989]
[1757091720898,0.2996,4296.3,4295.7,0.3045]
[1757091721303,0.7143,4296.3,4296.2,0.1993]
[1757091721696,0.7143,4296.3,4295.9,0.3045]
[1757091721896,0.4147,4295.7,4295.6,3.9476]
[1757091722207,0.7143,4295.7,4295.6,0.5038]
[1757091722498,0.7143,4295.7,4295.6,0.1993]
[1757091722704,0.7143,4295.7,4295.6,0.6989]
[1757091723108,0.2996,4296.3,4295.7,0.3045]
[1757091723308,0.2996,4296.3,4296.2,0.1993]
[1757091723309,0.7143,4296.3,4296.2,0.1993]
[1757091723515,0.7143,4296.3,4296.2,0.5038]
[1757091723700,0.7143,4296.3,4296.2,0.6989]
[1757091724505,0.2013,4296.3,4296.2,0.6989]
[1757091724702,0.5009,4296.3,4296.2,0.6989]
[1757091724903,0.7143,4296.3,4296.2,0.6989]
[1757091725411,0.7143,4296.3,4296.2,0.1993]
[1757091725597,0.4147,4296.3,4295.7,0.3045]
[1757091725802,0.7143,4296.2,4296.1,0.1993]
[1757091726004,0.7143,4296.2,4296.1,0.5038]
[1757091726204,0.7143,4296.2,4296.1,0.6989]
[1757091726508,0.1257,4296.5,4296.1,0.6989]
[1757091726703,0.2996,4296.5,4296.2,0.3045]
[1757091726897,0.236,4296.6,4296.2,0.3045]
[1757091727107,0.9503,4296.6,4296.5,0.6989]
[1757091727811,0.236,4296.6,4296.5,0.8237]
[1757091728311,0.2013,4296.9,4296.8,0.6989]
[1757091728698,0.1257,4297.5,4296.9,0.3045]
[1757091728900,0.7143,4297.4,4297.3,0.1993]
[1757091729102,0.7143,4297.4,4297.3,0.5038]
[1757091729597,0.7143,4297.4,4297.3,0.6989]
[1757091730407,0.4147,4296.9,4296.8,0.5038]
[1757091730604,0.4147,4296.9,4296.7,3.2078]
[1757091730809,0.7143,4296.8,4296.7,3.2078]
[1757091731306,0.1257,4296.5,4296.2,3.2078]
[1757091731610,0.7143,4296.3,4295.7,0.3045]
[1757091732206,0.4147,4295.7,4295.6,3.2078]
[1757091732513,0.7143,4295.7,4295.6,3.2078]
[1757091734112,0.7143,4295.7,4295.6,3.4071]
[1757091734312,0.7143,4295.7,4295.6,3.2078]
[1757091734810,0.7143,4295.7,4295.6,3.4071]
[1757091735208,0.7143,4295.7,4295.2,0.3045]
[1757091736210,0.2996,4295.6,4295.0,3.2078]
[1757091736416,0.4147,4295.1,4295.0,3.6022]
[1757091736610,0.7143,4295.1,4295.0,3.9067]
[1757091737511,0.4147,4294.8,4294.7,0.5038]
[1757091737711,0.1257,4294.5,4294.3,0.3045]
[1757091737911,0.7143,4294.4,4294.3,0.5038]